bitfinex-derivatives/quotes_SOLF0:USTF0_20241025
["timestamp","ask_amount","ask_price","bid_price","bid_amount"]
[1729851542101,4.36,172.61,172.54,8.0102728]
[1729851542297,4.36,172.61,172.5,4.36]
[1729851542298,12.3702728,172.61,172.56,8.0102728]
[1729851542500,8.0102728,172.61,172.57,1.45023216]
[1729851542700,8.0102728,172.61,172.56,8.0102728]
[1729851543003,8.0102728,172.61,172.57,1.45006975]
[1729851543202,8.0102728,172.61,172.57,2.8995]
[1729851545002,8.0102728,172.61,172.58,2.8993]
[1729851545207,8.0102728,172.61,172.56,8.0102728]
[1729851545405,8.0102728,172.61,172.57,1.45001401]
[1729851545601,8.0102728,172.61,172.56,8.0102728]
[1729851545907,8.0102728,172.62,172.59,2.899]
[1729851548602,4.36,172.66,172.63,2.8983]
[1729851548803,8.0102728,172.65,172.6,8.0102728]
[1729851549003,8.0102728,172.62,172.58,4.36]
[1729851549205,8.0102728,172.62,172.59,1.44986467]
[1729851549504,8.0102728,172.62,172.58,4.36]
[1729851549709,8.0102728,172.62,172.6,2.899]
[1729851550707,8.0102728,172.62,172.61,2.8988]
[1729851551411,8.0102728,172.64,172.61,2.8988]
[1729851551814,2.8982,172.65,172.61,2.8988]
[1729851552012,8.0102728,172.64,172.61,2.8988]
[1729851552207,8.0102728,172.64,172.62,2.8985]
[1729851553009,2.8979,172.67,172.6,8.0102728]
[1729851553220,2.8979,172.67,172.63,2.8984]
[1729851553412,8.0102728,172.66,172.63,2.8984]
[1729851553612,8.0102728,172.66,172.58,4.36]
[1729851553813,8.0102728,172.64,172.61,2.8987]
[1729851554409,8.0102728,172.64,172.58,12.3502728]
[1729851554617,8.0102728,172.62,172.6,2.899]
[1729851558827,8.0102728,172.61,172.44,4.35224917]
[1729851559035,8.0102728,172.61,172.57,2.8994]
[1729851559036,8.0102728,172.6,172.57,2.8994]
[1729851559231,8.0102728,172.58,172.53,12.3502728]
[1729851559435,8.0102728,172.58,172.54,10.54849813]
[1729851559633,8.0102728,172.58,172.56,2.8996]
[1729851559831,8.0102728,172.58,172.57,6.58707946]
[1729851560738,8.0102728,172.58,172.55,2.8998]
[1729851561041,1.2368,172.62,172.52,4.34]
[1729851561042,8.0102728,172.56,172.52,4.34]
[1729851561242,8.0102728,172.56,172.53,10.54718561]
[1729851561444,8.0102728,172.56,172.54,6.58686004]
[1729851561638,4.34,172.6,172.55,1.45030316]
[1729851561639,2.8995,172.58,172.55,1.45030316]
[1729851561943,8.0102728,172.56,172.54,2.8999]
[1729851562144,8.0102728,172.56,172.55,1.45032535]
[1729851563231,8.0102728,172.56,172.53,2.9001]
[1729851563446,8.0102728,172.56,172.54,6.58245249]
[1729851563647,8.0102728,172.56,172.55,1.45036245]
[1729851564140,10.9100728,172.56,172.49,4.36]
[1729851564350,8.0102728,172.56,172.5,18.54777586]
[1729851564540,8.0102728,172.56,172.51,10.53750306]
[1729851564847,8.0102728,172.56,172.52,10.53750306]
[1729851565148,8.0102728,172.56,172.54,2.8999]
[1729851566347,8.0102728,172.56,172.46,4.12561947]
[1729851566348,2.8999,172.55,172.52,2.9003]
[1729851566548,8.0102728,172.53,172.52,2.9003]
[1729851567042,8.0102728,172.54,172.52,2.9003]
[1729851576151,8.0102728,172.54,172.53,2.9002]
[1729851576452,8.0102728,172.55,172.5,8.0102728]
[1729851577046,7.2593,172.58,172.52,8.0102728]
[1729851577047,4.36,172.58,172.52,8.0102728]
[1729851577247,8.0102728,172.58,172.52,8.0102728]
[1729851577654,8.0102728,172.58,172.53,1.45034858]
[1729851577849,8.0102728,172.58,172.52,8.0102728]
[1729851578154,8.0102728,172.58,172.53,1.45034751]
[1729851578354,8.0102728,172.58,172.56,2.8996]
[1729851580554,8.0102728,172.58,172.57,2.8995]
[1729851586654,10.9097728,172.58,172.54,2.9]
[1729851586858,8.0102728,172.55,172.49,16.1149728]
[1729851587057,8.0102728,172.55,172.5,10.51086008]
[1729851587260,8.0102728,172.55,172.51,6.56593686]
[1729851587466,8.0102728,172.55,172.52,1.45041733]
[1729851587666,8.0102728,172.55,172.49,16.1149728]
[1729851587860,8.0102728,172.55,172.5,10.51189663]
[1729851588053,8.0102728,172.55,172.51,6.56653558]
[1729851588259,8.0102728,172.55,172.54,2.9]
[1729851589168,4.36,172.6,172.53,2.9002]
[1729851589367,4.36,172.6,172.5,8.0102728]
[1729851589564,8.0102728,172.55,172.51,6.56578895]
[1729851589759,8.0102728,172.55,172.52,1.45041226]
[1729851589959,8.0102728,172.55,172.53,1.45041226]
[1729851590258,8.0102728,172.56,172.55,2.8998]
[1729851590771,8.0102728,172.57,172.56,2.8995]
[1729851591068,8.0102728,172.57,172.51,8.0102728]
[1729851591069,8.0102728,172.58,172.53,8.0102728]
[1729851591575,8.0102728,172.58,172.54,1.4502981]
[1729851591774,8.0102728,172.58,172.55,1.4502981]
[1729851592074,8.0102728,172.58,172.56,2.8997]
[1729851593068,8.0102728,172.58,172.57,2.8994]
[1729851595971,8.0102728,172.64,172.61,2.8988]
[1729851596275,8.0102728,172.64,172.57,12.3502728]
[1729851596474,10.9087728,172.64,172.6,2.899]
[1729851596672,8.0102728,172.62,172.6,2.899]
[1729851597173,2.8985,172.64,172.6,2.899]
[1729851597174,8.0102728,172.63,172.6,2.899]
[1729851600773,8.0102728,172.63,172.58,2.8992]
[1729851600975,8.0102728,172.63,172.57,12.3502728]
[1729851601174,8.0102728,172.64,172.59,8.0102728]
[1729851602382,8.0102728,172.64,172.61,2.8987]
[1729851603283,8.0102728,172.62,172.61,2.8987]
[1729851603577,8.0102728,172.62,172.57,4.34]
[1729851603783,8.0102728,172.58,172.54,4.34]
[1729851603988,8.0102728,172.58,172.55,6.56942306]
[1729851604184,8.0102728,172.58,172.56,6.56942306]
[1729851604378,8.0102728,172.58,172.57,1.45009093]
[1729851604978,8.0102728,172.58,172.54,4.34]
[1729851605176,4.34,172.63,172.55,5.39866512]
[1729851605177,8.0102728,172.6,172.55,5.39866512]
[1729851605374,8.0102728,172.6,172.56,6.57037952]
[1729851605590,8.0102728,172.6,172.57,1.45010141]
[1729851605884,8.0102728,172.6,172.54,12.3502728]
[1729851606085,8.0102728,172.6,172.55,10.51613107]
[1729851606287,8.0102728,172.6,172.58,2.8992]
[1729851607884,8.0102728,172.6,172.54,12.3502728]
[1729851608079,4.34,172.63,172.56,8.0102728]
[1729851608289,8.0102728,172.61,172.57,6.56476259]
[1729851608481,8.0102728,172.61,172.57,1.45009128]
[1729851608688,8.0102728,172.61,172.59,2.899]
[1729851609574,8.0102728,172.6,172.55,3.9441594]
[1729851609882,8.0102728,172.59,172.58,2.8993]
[1729851612181,3.7728,172.7,172.57,8.0102728]
[1729851612377,3.7728,172.7,172.59,8.0102728]
[1729851612378,4.34,172.69,172.59,8.0102728]
[1729851612580,8.0102728,172.64,172.59,8.0102728]
[1729851612782,8.0102728,172.64,172.6,1.449935]
[1729851612983,8.0102728,172.64,172.59,8.0102728]
[1729851613178,8.0102728,172.64,172.6,1.44991514]
[1729851613384,8.0102728,172.64,172.62,2.8985]
[1729851613788,8.0102728,172.64,172.59,8.0102728]
[1729851613987,8.0102728,172.64,172.63,2.8985]
[1729851620694,2.898,172.67,172.63,2.8985]
[1729851620892,8.0102728,172.65,172.63,2.8985]
[1729851621286,2.898,172.67,172.63,2.8985]
[1729851621495,8.0102728,172.65,172.64,2.8983]
[1729851622199,11.0102,172.7,172.66,2.8979]
[1729851622391,8.0102728,172.69,172.66,2.8979]
[1729851623900,8.0102728,172.69,172.64,8.0102728]
[1729851624101,8.0102728,172.69,172.67,2.8977]
[1729851624691,8.0102728,172.69,172.66,2.8979]
[1729851626893,2.8974,172.7,172.66,2.8979]
[1729851627101,4.34,172.71,172.65,8.0102728]
[1729851627302,12.3502728,172.71,172.65,8.0102728]
[1729851627503,12.3502728,172.71,172.69,2.8975]
[1729851627806,12.3502728,172.71,172.63,1.2429]
[1729851627807,7.2369,172.73,172.67,8.0102728]
[1729851628001,8.0102728,172.72,172.67,8.0102728]
[1729851629289,8.0102728,172.72,172.69,2.8973]
[1729851631395,2.8969,172.73,172.69,2.8973]
[1729851631597,8.0102728,172.72,172.69,2.8973]
[1729851632500,2.8966,172.75,172.71,2.897]
[1729851632698,2.8966,172.75,172.66,4.34]
[1729851632699,4.34,172.76,172.69,8.0102728]
[1729851632899,8.0102728,172.74,172.69,8.0102728]
[1729851633204,8.0102728,172.73,172.67,8.0102728]
[1729851633701,8.0102728,172.69,172.65,4.34]
[1729851633895,8.0102728,172.69,172.64,6.8634]
[1729851634100,8.0102728,172.69,172.66,2.898]
[1729851634296,8.0102728,172.69,172.64,6.8634]
[1729851634506,8.0102728,172.69,172.65,1.44919433]
[1729851634704,8.0102728,172.69,172.64,6.8634]
[1729851634906,8.0102728,172.69,172.65,1.4491955]
[1729851635206,8.0102728,172.69,172.65,2.8981]
[1729851635505,8.0102728,172.69,172.64,6.8634]
[1729851635700,8.0102728,172.69,172.65,1.4491955]
[1729851636013,8.0102728,172.69,172.67,2.8977]
[1729851638710,8.0102728,172.69,172.68,2.8977]
[1729851639209,8.0102728,172.7,172.68,2.8977]
[1729851640204,8.0102728,172.73,172.67,8.0102728]
[1729851640401,8.0102728,172.74,172.7,2.8973]
[1729851641205,4.34,172.76,172.7,2.8973]
[1729851641411,8.0102728,172.73,172.7,2.8973]
[1729851642012,4.34,172.76,172.7,2.8973]
[1729851642309,8.0102728,172.73,172.7,2.8973]
[1729851642509,8.0102728,172.73,172.71,2.8971]
[1729851644398,8.0102728,172.73,172.67,8.0102728]
[1729851644612,4.34,172.76,172.69,8.0102728]
[1729851644812,4.34,172.76,172.71,8.0102728]
[1729851645113,8.0102728,172.77,172.72,8.0102728]
[1729851645314,8.0102728,172.77,172.75,2.8963]
[1729851646114,4.34,172.8,172.76,2.8962]
[1729851646309,3.731,172.85,172.74,8.0102728]
[1729851646511,8.0102728,172.79,172.74,8.0102728]
[1729851648911,8.0102728,172.79,172.76,2.8962]
[1729851650506,2.8957,172.8,172.76,2.8962]
[1729851650703,8.0102728,172.79,172.76,2.8962]
[1729851651108,8.0102728,172.79,172.74,8.0102728]
[1729851651313,2.8955,172.81,172.77,2.896]
[1729851651514,8.0102728,172.79,172.77,2.896]
[1729851651926,4.34,172.84,172.71,2.3984]
[1729851652116,8.0102728,172.81,172.75,8.0102728]
[1729851653109,2.8951,172.83,172.77,8.0102728]
[1729851653314,8.0102728,172.82,172.77,8.0102728]
[1729851653721,2.8951,172.83,172.78,8.0102728]
[1729851655307,2.8951,172.83,172.79,2.8958]
[1729851655510,8.0102728,172.82,172.79,2.8958]
[1729851655913,10.9055728,172.82,172.79,2.8958]
[1729851656113,10.9055728,172.82,172.78,2.8959]
[1729851656420,8.0102728,172.81,172.75,12.3502728]
[1729851657325,10.9058728,172.81,172.77,2.8961]
[1729851658525,10.9058728,172.81,172.77,10.9063728]
[1729851662423,8.0102728,172.81,172.78,2.8959]
[1729851662624,10.9057728,172.82,172.78,2.8959]
[1729851662825,2.8955,172.82,172.78,2.8959]
[1729851663125,2.8955,172.82,172.78,10.9061728]
[1729851665424,8.0102728,172.8,172.75,4.34]
[1729851665620,10.9058728,172.8,172.77,2.8961]
[1729851666519,8.0102728,172.8,172.77,2.8961]
[1729851670826,8.0102728,172.78,172.73,12.3502728]
[1729851671030,6.8682,172.85,172.73,12.3502728]
[1729851671031,8.0102728,172.79,172.73,12.3502728]
[1729851672330,10.9060728,172.79,172.75,2.8964]
[1729851674529,8.0102728,172.79,172.75,2.8964]
[1729851675820,8.0102728,172.79,172.76,2.8962]
[1729851676430,8.0102728,172.79,172.74,8.0102728]
[1729851676431,10.9060728,172.79,172.75,2.8964]
[1729851677233,2.8958,172.79,172.75,2.8964]
[1729851677420,8.0102728,172.78,172.75,2.8964]
[1729851677620,2.8958,172.79,172.75,2.8964]
[1729851679732,6.8682,172.85,172.71,2.3984]
[1729851679733,8.0102728,172.76,172.71,2.3984]
[1729851679924,2.5282,172.85,172.68,8.0102728]
[1729851679925,8.0102728,172.73,172.68,8.0102728]
[1729851680240,8.0102728,172.73,172.68,12.3502728]
[1729851680928,8.0102728,172.73,172.71,2.897]
[1729851681329,8.0102728,172.74,172.71,2.897]
[1729851681736,2.8966,172.75,172.71,2.897]
[1729851681937,8.0102728,172.74,172.72,2.897]
[1729851686233,8.0102728,172.74,172.69,8.0102728]
[1729851686234,1.2161,172.78,172.76,2.8963]
[1729851686438,8.0102728,172.79,172.74,8.0102728]
[1729851686839,8.0102728,172.79,172.76,2.8963]
[1729851687434,2.8957,172.8,172.76,2.8963]
[1729851687750,10.9059728,172.8,172.76,2.8963]
[1729851692639,8.0102728,172.79,172.76,2.8963]
[1729851694139,10.9064728,172.77,172.7,1.29]
[1729851694336,8.0102728,172.75,172.71,6.55081678]
[1729851694545,8.0102728,172.75,172.7,5.63]
[1729851694844,8.0102728,172.75,172.72,2.8968]
[1729851695042,8.0102728,172.73,172.67,8.0102728]
[1729851695349,8.0102728,172.72,172.7,2.8973]
[1729851695646,8.0102728,172.72,172.64,8.0102728]
[1729851695840,8.0102728,172.69,172.65,6.55617426]
[1729851696048,8.0102728,172.69,172.66,1.44932477]
[1729851696240,8.0102728,172.69,172.67,1.44932477]
[1729851696437,8.0102728,172.69,172.64,12.3502728]
[1729851696643,8.0102728,172.69,172.65,6.55791466]
[1729851696942,8.0102728,172.69,172.66,1.44938979]
[1729851697148,8.0102728,172.69,172.64,8.0102728]
[1729851697448,8.0102728,172.69,172.65,6.55818953]
[1729851697644,8.0102728,172.69,172.67,2.8977]
[1729851698546,3.7351,172.75,172.66,8.0102728]
[1729851698743,3.7351,172.75,172.69,8.0102728]
[1729851698947,10.5536728,172.75,172.7,8.0102728]
[1729851699152,8.0102728,172.75,172.7,8.0102728]
[1729851699546,8.0102728,172.75,172.72,2.8969]
[1729851703852,8.0102728,172.74,172.72,2.8969]
[1729851704655,8.0102728,172.73,172.68,4.34]
[1729851704855,4.34,172.77,172.69,1.44914825]
[1729851704856,8.0102728,172.71,172.69,1.44914825]
[1729851705150,8.0102728,172.71,172.65,12.3502728]
[1729851705550,8.0102728,172.71,172.66,5.11039056]
[1729851705753,8.0102728,172.71,172.69,2.8974]
[1729851706456,8.0102728,172.72,172.69,2.8974]
[1729851706759,10.9072728,172.72,172.69,2.8974]
[1729851707845,3.7334,172.76,172.69,8.0102728]
[1729851708356,2.4694,172.76,172.7,8.0102728]
[1729851708560,8.0102728,172.75,172.7,8.0102728]
[1729851709151,8.0102728,172.75,172.72,2.8969]
[1729851715764,1.179,172.85,172.69,8.0102728]
[1729851715968,7.69928789,172.84,172.74,2.8966]
[1729851716174,8.0102728,172.75,172.74,2.8966]
[1729851718275,7.2161,172.78,172.74,2.8966]
[1729851718471,8.0102728,172.76,172.74,2.8966]
[1729851719467,7.2161,172.78,172.75,2.8965]
[1729851719675,8.0102728,172.77,172.75,2.8965]
[1729851720461,8.0102728,172.76,172.72,8.0102728]
[1729851721469,8.0102728,172.76,172.74,2.8966]
[1729851726765,8.0102728,172.75,172.69,4.32]
[1729851726963,8.0102728,172.73,172.7,6.5561087]
[1729851727276,8.0102728,172.73,172.71,1.4490417]
[1729851727472,8.0102728,172.73,172.69,4.32]
[1729851727673,8.0102728,172.73,172.7,6.55662999]
[1729851727873,8.0102728,172.73,172.71,1.44904326]
[1729851728069,8.0102728,172.73,172.69,4.32]
[1729851728279,8.0102728,172.73,172.7,6.55710776]
[1729851728580,8.0102728,172.74,172.71,4.34604444]
[1729851728781,8.0102728,172.74,172.71,2.897]
[1729851729782,8.0102728,172.73,172.63,1.2546]
[1729851729981,8.0102728,172.71,172.69,2.8973]
[1729851730274,8.0102728,172.71,172.7,1.44910448]
[1729851730474,8.0102728,172.71,172.69,2.8973]
[1729851731983,8.0102728,172.71,172.66,12.3302728]
[1729851731984,8.0102728,172.7,172.66,4.32]
[1729851732181,8.0102728,172.7,172.67,6.56025038]
[1729851732381,8.0102728,172.68,172.63,9.2648728]
[1729851732585,8.0102728,172.67,172.66,2.8978]
[1729851732880,8.0102728,172.67,172.66,9.45894092]
[1729851733575,8.0102728,172.67,172.66,4.34719937]
[1729851734080,8.0102728,172.68,172.66,4.34719937]
[1729851734280,8.0102728,172.68,172.66,2.8978]
[1729851735973,8.0102728,172.68,172.67,1.44940069]
[1729851736177,8.0102728,172.68,172.66,2.8978]
[1729851736385,8.0102728,172.68,172.67,1.44940069]
[1729851736786,8.0102728,172.68,172.67,4.34720069]
[1729851737195,8.0102728,172.71,172.69,2.8974]
[1729851737485,8.0102728,172.72,172.68,8.0102728]
[1729851737790,8.0102728,172.72,172.69,1.44922278]
[1729851737980,8.0102728,172.72,172.68,8.0102728]
[1729851738288,8.0102728,172.73,172.69,9.45949559]
[1729851738492,8.0102728,172.73,172.7,1.44922279]
[1729851738682,8.0102728,172.73,172.71,2.897]
[1729851743681,2.8965,172.75,172.71,2.897]
[1729851743888,8.0102728,172.73,172.71,2.897]
[1729851746887,8.0102728,172.73,172.72,1.44905099]
[1729851747088,8.0102728,172.73,172.71,2.897]
[1729851751987,2.8965,172.75,172.71,2.897]
[1729851752294,8.0102728,172.73,172.71,2.897]
[1729851754392,8.0102728,172.73,172.72,2.897]
[1729851756095,8.0102728,172.73,172.72,4.34607174]
[1729851756894,8.0498,172.78,172.73,2.8968]
[1729851756895,8.0102728,172.74,172.73,2.8968]
[1729851759993,4.32,172.78,172.69,8.0102728]
[1729851760201,8.0102728,172.77,172.72,8.0102728]
[1729851760499,8.0102728,172.77,172.73,6.55984288]
[1729851760699,8.0102728,172.77,172.73,1.44905008]
[1729851760890,8.0102728,172.77,172.74,1.44905008]
[1729851761099,8.0102728,172.77,172.72,12.3302728]
[1729851761303,8.0102728,172.77,172.76,2.8963]
[1729851765505,4.32,172.82,172.74,8.0102728]
[1729851765700,8.0102728,172.8,172.75,6.55664103]
[1729851765907,8.0102728,172.8,172.76,1.44877105]
[1729851766205,4.32,172.82,172.74,8.0102728]
[1729851766405,4.32,172.82,172.75,6.55555214]
[1729851766406,8.0102728,172.8,172.75,6.55555214]
[1729851766607,8.0102728,172.8,172.76,6.55555214]
[1729851766800,8.0102728,172.8,172.77,1.44867442]
[1729851767006,8.0102728,172.8,172.76,8.0102728]
[1729851767205,8.0102728,172.8,172.77,1.44865007]
[1729851767510,8.0102728,172.8,172.76,8.0102728]
[1729851767511,8.0102728,172.8,172.78,2.8959]
[1729851767701,4.32,172.84,172.76,8.0102728]
[1729851767906,8.0102728,172.81,172.77,1.44859379]
[1729851768211,337.0,172.96,172.8,8.0102728]
[1729851768400,8.0102728,172.87,172.81,8.0102728]
[1729851768601,8.0102728,172.87,172.82,1.44834617]
[1729851768802,8.0102728,172.87,172.85,2.8948]
[1729851772306,10.9047728,172.87,172.83,2.895]
[1729851772507,8.0102728,172.84,172.78,4.32]
[1729851772710,8.0102728,172.82,172.78,4.32]
[1729851773011,8.0102728,172.82,172.8,2.8956]
[1729851773812,8.0102728,172.83,172.8,2.8956]
[1729851774711,8.0102728,172.83,172.78,2.8959]
[1729851774712,8.0102728,172.81,172.78,2.8959]
[1729851776915,8.0102728,172.81,172.74,5.09713367]
[1729851776916,8.0102728,172.8,172.77,2.8961]
[1729851777513,8.0102728,172.8,172.75,12.3302728]
[1729851777514,8.0102728,172.78,172.76,2.8963]
[1729851777912,8.0102728,172.78,172.75,4.32]
[1729851779414,8.0102728,172.78,172.77,2.8961]
[1729851780313,1.1886,172.85,172.75,8.0102728]
[1729851780514,8.0102728,172.82,172.77,8.0102728]
[1729851780714,8.0102728,172.83,172.77,8.0102728]
[1729851782319,8.0102728,172.83,172.79,2.8957]
[1729851782519,8.0102728,172.81,172.79,2.8957]
[1729851788831,2.8952,172.83,172.79,2.8957]
[1729851789037,8.0102728,172.82,172.79,2.8957]
[1729851791936,8.0102728,172.82,172.8,2.8956]
[1729851792137,8.0102728,172.84,172.79,8.0102728]
[1729851792533,8.0102728,172.84,172.82,2.8953]
[1729851796239,8.0102728,172.85,172.82,2.8953]
[1729851796744,1.2402,172.86,172.8,8.0102728]
[1729851797040,1.2402,172.86,172.78,4.32]
[1729851797041,1.1879,172.89,172.81,8.0102728]
[1729851797233,2.4075,172.91,172.84,8.0102728]
[1729851797439,8.0102728,172.89,172.84,8.0102728]
[1729851798642,8.0102728,172.89,172.85,2.8947]
[1729851798837,8.0102728,172.89,172.84,8.0102728]
[1729851799648,4.082,172.91,172.86,2.8945]
[1729851799649,8.0102728,172.88,172.86,2.8945]
[1729851802039,8.0102728,172.87,172.84,2.8948]
[1729851802247,8.0102728,172.85,172.8,2.521]
[1729851802543,8.0102728,172.84,172.8,4.32]
[1729851803340,8.0102728,172.84,172.83,2.8951]
[1729851804349,8.0102728,172.84,172.8,4.32]
[1729851804546,8.0102728,172.83,172.82,2.8952]
[1729851804745,8.0102728,172.83,172.75,2.5283]
[1729851804952,8.0102728,172.81,172.76,12.3302728]
[1729851805345,8.0102728,172.81,172.79,2.8957]
[1729851805543,8.0102728,172.81,172.76,12.3302728]
[1729851806746,8.0102728,172.83,172.76,12.3302728]
[1729851807150,1.2184,172.89,172.83,2.895]
[1729851807449,8.0102728,172.86,172.83,2.895]
[1729851808558,8.0102728,172.87,172.82,8.0102728]
[1729851808750,1.2789,172.9,172.83,8.0102728]
[1729851809051,8.0102728,172.88,172.83,8.0102728]
[1729851809355,8.0102728,172.84,172.81,2.8954]
[1729851809651,8.0102728,172.82,172.81,2.8954]
[1729851810444,7.2146,172.87,172.82,2.8952]
[1729851810644,8.0102728,172.84,172.82,2.8952]
[1729851819346,8.0102728,172.84,172.8,8.0102728]
[1729851819549,7.2145,172.87,172.83,2.8951]
[1729851819749,8.0102728,172.85,172.83,2.8951]
[1729851820751,8.0102728,172.87,172.81,8.0102728]
[1729851821056,2.8943,172.88,172.83,8.0102728]
[1729851821057,8.0102728,172.88,172.83,8.0102728]
[1729851821757,8.0102728,172.88,172.85,2.8947]
[1729851822355,8.0102728,172.88,172.83,8.0102728]
[1729851822751,8.0102728,172.89,172.84,8.0102728]
[1729851823255,8.0102728,172.89,172.87,2.8945]
[1729851826364,2.894,172.9,172.87,2.8945]
[1729851830064,10.9041728,172.91,172.87,2.8944]
[1729851830660,10.9041728,172.91,172.86,2.8946]
[1729851830860,10.9041728,172.91,172.84,8.0102728]
[1729851831056,10.9041728,172.91,172.85,1.44783254]
[1729851831261,10.9041728,172.91,172.86,8.0102728]
[1729851831472,2.8935,172.93,172.87,9.45787166]
[1729851831765,8.0102728,172.92,172.87,8.0102728]
[1729851832369,8.0102728,172.92,172.88,2.8942]
[1729851832564,8.0102728,172.92,172.87,8.0102728]
[1729851833365,8.0102728,172.92,172.89,2.894]
[1729851833755,8.0102728,172.92,172.87,8.0102728]
[1729851833961,8.0102728,172.92,172.9,2.8939]
[1729851834470,8.0102728,172.91,172.89,2.8941]
[1729851834670,8.0102728,172.9,172.86,4.3]
[1729851834865,8.0102728,172.88,172.86,4.3]
[1729851835169,6.7519,172.96,172.86,4.3]
[1729851835370,8.0102728,172.88,172.83,12.3102728]
[1729851835566,8.0102728,172.88,172.84,1.44780951]
[1729851835758,8.0102728,172.88,172.83,12.3102728]
[1729851835962,8.0102728,172.88,172.84,1.44781431]
[1729851836160,8.0102728,172.88,172.83,12.3102728]
[1729851836469,8.0102728,172.88,172.84,1.44781431]
[1729851836671,8.0102728,172.88,172.86,2.8945]
[1729851837374,8.0102728,172.89,172.87,2.8944]
[1729851837772,4.3,172.92,172.85,8.0102728]
[1729851837971,10.9040728,172.91,172.88,2.8942]
[1729851840267,8.0102728,172.89,172.88,2.8942]
[1729851846863,2.4519,172.96,172.84,8.0102728]
[1729851847077,2.4519,172.96,172.91,2.8938]
[1729851847078,6.7519,172.96,172.91,2.8938]
[1729851847278,8.0102728,172.94,172.91,2.8938]
[1729851848767,8.0102728,172.94,172.89,8.0102728]
[1729851849575,2.4519,172.96,172.89,8.0102728]
[1729851849879,10.4621728,172.96,172.89,8.0102728]
[1729851850771,13.3551728,172.96,172.92,2.8936]
[1729851851172,5.3449,172.96,172.92,2.8936]
[1729851851374,5.3449,172.96,172.92,8.0102728]
[1729851851375,8.0102728,172.96,172.92,8.0102728]
[1729851851680,8.0102728,172.98,172.92,8.0102728]
[1729851851880,8.0102728,172.98,172.95,2.893]
[1729851852179,8.0102728,172.98,172.92,8.0102728]
[1729851852379,2.8925,172.99,172.94,8.0102728]
[1729851852579,10.9027728,172.99,172.94,8.0102728]
[1729851852976,8.0102728,172.99,172.94,8.0102728]
[1729851853480,8.0102728,173.0,172.95,8.0102728]
[1729851853682,4.3,173.01,172.95,8.0102728]
[1729851853879,8.0102728,173.0,172.95,8.0102728]
[1729851854083,8.0102728,173.0,172.97,2.8927]
[1729851854278,8.0102728,172.99,172.92,2.4537]
[1729851854474,8.0102728,172.99,172.94,8.0102728]
[1729851855177,10.9027728,172.99,172.95,2.893]
[1729851855686,4.3,173.01,172.94,8.0102728]
[1729851855886,8.0102728,172.99,172.97,2.8927]
[1729851856281,8.0102728,172.99,172.96,2.8929]
[1729851856584,8.0102728,172.97,172.92,2.4537]
[1729851856882,8.0102728,172.96,172.91,12.3102728]
[1729851857076,8.0102728,172.96,172.91,8.0102728]
[1729851857277,8.0102728,172.96,172.93,2.8933]
[1729851857477,8.0102728,172.96,172.91,8.0102728]
[1729851858483,2.8928,172.98,172.91,8.0102728]
[1729851858685,8.0102728,172.97,172.91,8.0102728]
[1729851859978,8.0102728,172.97,172.92,8.0102728]
[1729851860181,9.6207,173.0,172.92,8.0102728]
[1729851860483,8.0102728,172.99,172.94,8.0102728]
[1729851860680,8.0102728,172.99,172.96,2.8928]
[1729851862477,2.4284,173.0,172.95,8.0102728]
[1729851862683,9.2188728,173.0,172.95,8.0102728]
[1729851863186,8.0102728,173.0,172.95,8.0102728]
[1729851863385,8.0102728,173.0,172.97,2.8927]
[1729851864088,2.8923,173.0,172.97,2.8927]
[1729851864275,10.9025728,173.0,172.97,2.8927]
[1729851865294,4.3,173.02,172.96,8.0102728]
[1729851865485,12.3102728,173.02,172.96,8.0102728]
[1729851865889,15.2023728,173.02,172.98,2.8925]
[1729851866390,2.8922,173.01,172.98,2.8925]
[1729851866584,10.9024728,173.01,172.98,2.8925]
[1729851868090,2.8922,173.01,172.97,2.8927]
[1729851868292,10.9024728,173.01,172.97,2.8927]
[1729851868792,2.8926,172.99,172.95,2.893]
[1729851869483,10.9031728,172.97,172.93,7.1933]
[1729851869678,10.9031728,172.97,172.92,8.0102728]
[1729851869883,8.0102728,172.98,172.92,8.0102728]
[1729851870283,10.9029728,172.98,172.94,10.9034728]
[1729851870797,2.8927,172.98,172.94,10.9034728]
[1729851871285,2.8925,172.99,172.95,2.893]
[1729851871492,10.9027728,172.99,172.95,2.893]
[1729851871891,10.9027728,172.99,172.95,10.9032728]
[1729851872284,4.3,173.03,172.97,2.8928]
[1729851872580,8.0102728,173.02,172.97,2.8928]